[Event "Titled Tuesday Blitz March 01 Early 2022"]
[White "Samunenkov, Ihor"]
[Black "Shvedova, Alexandra"]
[WhiteFideId "14187086"]
[BlackFideId "54154782"]
[WhiteElo "2406"]
[BlackElo "1920"]
[Result "1-0"]
[Round "07"]
[TimeControl "180+1"]
[Date "2022.03.01"]
[WhiteClock "0:00:01"]
[BlackClock "0:00:11"]

1. d4 {[%clk 0:03:00]}  Nf6 {[%clk 0:02:59]} 2. c4 {[%clk 0:03:01]}  e6 {[%clk 0:02:59]} 3. Nc3 {[%clk 0:03:02]}  Bb4 {[%clk 0:02:59]} 4. e3 {[%clk 0:03:02]}  O-O {[%clk 0:02:59]} 5. Bd2 {[%clk 0:03:03]}  c6 {[%clk 0:02:56]} 6. Nf3 {[%clk 0:02:52]}  d5 {[%clk 0:02:54]} 7. Rc1 {[%clk 0:02:46]}  Nbd7 {[%clk 0:02:53]} 8. Bd3 {[%clk 0:02:42]}  b6 {[%clk 0:02:48]} 9. O-O {[%clk 0:02:38]}  Bb7 {[%clk 0:02:48]} 10. cxd5 {[%clk 0:02:19]}  cxd5 {[%clk 0:02:43]} 11. Nb5 {[%clk 0:02:18]}  Bxd2 {[%clk 0:02:37]} 12. Qxd2 {[%clk 0:02:18]}  Ne4 {[%clk 0:02:32]} 13. Qe2 {[%clk 0:02:09]}  Ba6 {[%clk 0:02:21]} 14. Rc6 {[%clk 0:01:39]}  Bxb5 {[%clk 0:02:04]} 15. Bxb5 {[%clk 0:01:39]}  Rc8 {[%clk 0:01:58]} 16. Rfc1 {[%clk 0:01:38]}  Rxc6 {[%clk 0:01:55]} 17. Rxc6 {[%clk 0:01:39]}  Qb8 {[%clk 0:01:44]} 18. Ba6 {[%clk 0:01:33]}  Qd8 {[%clk 0:01:34]} 19. Qc2 {[%clk 0:01:20]}  Nb8 {[%clk 0:01:30]} 20. Rc8 {[%clk 0:01:18]}  Qd6 {[%clk 0:01:25]} 21. Bd3 {[%clk 0:01:11]}  f5 {[%clk 0:01:08]} 22. Ne5 {[%clk 0:01:09]}  Nc5 {[%clk 0:00:57]} 23. Rxf8+ {[%clk 0:01:08]}  Kxf8 {[%clk 0:00:57]} 24. Bxf5 {[%clk 0:00:54]}  exf5 {[%clk 0:00:53]} 25. Qxf5+ {[%clk 0:00:55]}  Ke7 {[%clk 0:00:31]} 26. dxc5 {[%clk 0:00:54]}  Qxc5 {[%clk 0:00:31]} 27. g3 {[%clk 0:00:50]}  Qc1+ {[%clk 0:00:28]} 28. Kg2 {[%clk 0:00:50]}  Qxb2 {[%clk 0:00:28]} 29. Qf7+ {[%clk 0:00:43]}  Kd6 {[%clk 0:00:27]} 30. Qf8+ {[%clk 0:00:43]}  Kc7 {[%clk 0:00:24]} 31. Qxg7+ {[%clk 0:00:38]}  Kc8 {[%clk 0:00:24]} 32. Qg8+ {[%clk 0:00:37]}  Kb7 {[%clk 0:00:21]} 33. Qxd5+ {[%clk 0:00:38]}  Kc7 {[%clk 0:00:18]} 34. Nc4 {[%clk 0:00:32]}  Qxa2 {[%clk 0:00:15]} 35. Qd6+ {[%clk 0:00:31]}  Kb7 {[%clk 0:00:16]} 36. Qd5+ {[%clk 0:00:27]}  Ka6 {[%clk 0:00:14]} 37. Nxb6 {[%clk 0:00:14]}  Qxd5+ {[%clk 0:00:11]} 38. Nxd5 {[%clk 0:00:15]}  Kb5 {[%clk 0:00:11]} 39. Kf3 {[%clk 0:00:14]}  Kc5 {[%clk 0:00:11]} 40. Ke4 {[%clk 0:00:14]}  a5 {[%clk 0:00:11]} 41. f4 {[%clk 0:00:02]}  a4 {[%clk 0:00:11]} 42. Nc3 {[%clk 0:00:02]}  Kb4 {[%clk 0:00:09]} 43. Nxa4 {[%clk 0:00:02]}  Kxa4 {[%clk 0:00:10]} 44. Kd5 {[%clk 0:00:02]}  Kb5 {[%clk 0:00:10]} 45. e4 {[%clk 0:00:03]}  Nc6 {[%clk 0:00:10]} 46. e5 {[%clk 0:00:03]}  Ne7+ {[%clk 0:00:09]} 47. Ke6 {[%clk 0:00:03]}  Ng6 {[%clk 0:00:08]} 48. f5 {[%clk 0:00:03]}  Nf8+ {[%clk 0:00:09]} 49. Ke7 {[%clk 0:00:03]}  Kc6 {[%clk 0:00:09]} 50. Kxf8 {[%clk 0:00:04]}  Kd5 {[%clk 0:00:09]} 51. e6 {[%clk 0:00:04]}  Ke5 {[%clk 0:00:09]} 52. g4 {[%clk 0:00:04]}  h5 {[%clk 0:00:09]} 53. h3 {[%clk 0:00:05]}  hxg4 {[%clk 0:00:09]} 54. hxg4 {[%clk 0:00:06]}  Kf6 {[%clk 0:00:09]} 55. e7 {[%clk 0:00:06]}  Kg5 {[%clk 0:00:09]} 56. e8=Q {[%clk 0:00:06]}  Kh6 {[%clk 0:00:10]} 57. f6 {[%clk 0:00:07]}  Kh7 {[%clk 0:00:09]} 58. f7 {[%clk 0:00:07]}  Kh8 {[%clk 0:00:09]} 59. Ke7+ {[%clk 0:00:07]}  Kh7 {[%clk 0:00:10]} 60. Qg8+ {[%clk 0:00:06]}  Kh6 {[%clk 0:00:11]} 61. f8=Q# {[%clk 0:00:01]} 1-0


[Site "https://www.chess.com"]

[Event "Titled Tuesday Blitz March 01 Early 2022"]
[White "Santos Flores, Alberto"]
[Black "Gormally, Daniel W"]
[WhiteFideId "3601234"]
[BlackFideId "406465"]
[WhiteElo "2293"]
[BlackElo "2543"]
[Result "1-0"]
[Round "07"]
[TimeControl "180+1"]
[Date "2022.03.01"]
[WhiteClock "0:00:14"]
[BlackClock "0:00:22"]

1. e4 {[%clk 0:03:00]}  Nc6 {[%clk 0:02:58]} 2. Nf3 {[%clk 0:03:00]}  d6 {[%clk 0:02:58]} 3. d4 {[%clk 0:02:59]}  Nf6 {[%clk 0:02:58]} 4. Nc3 {[%clk 0:02:57]}  Bg4 {[%clk 0:02:57]} 5. Be2 {[%clk 0:02:56]}  e6 {[%clk 0:02:57]} 6. Be3 {[%clk 0:02:53]}  Be7 {[%clk 0:02:57]} 7. Qd2 {[%clk 0:02:49]}  O-O {[%clk 0:02:54]} 8. O-O-O {[%clk 0:02:47]}  d5 {[%clk 0:02:52]} 9. e5 {[%clk 0:02:40]}  Ne4 {[%clk 0:02:38]} 10. Nxe4 {[%clk 0:02:40]}  dxe4 {[%clk 0:02:39]} 11. Ne1 {[%clk 0:02:39]}  Bxe2 {[%clk 0:02:24]} 12. Qxe2 {[%clk 0:02:39]}  f6 {[%clk 0:02:24]} 13. f4 {[%clk 0:02:30]}  Nb4 {[%clk 0:02:17]} 14. a3 {[%clk 0:02:19]}  Nd5 {[%clk 0:02:17]} 15. c4 {[%clk 0:02:19]}  Nxe3 {[%clk 0:01:27]} 16. Qxe3 {[%clk 0:02:20]}  f5 {[%clk 0:01:28]} 17. Nc2 {[%clk 0:02:11]}  c6 {[%clk 0:01:27]} 18. h3 {[%clk 0:02:08]}  b5 {[%clk 0:01:20]} 19. d5 {[%clk 0:01:50]}  cxd5 {[%clk 0:01:18]} 20. cxd5 {[%clk 0:01:48]}  exd5 {[%clk 0:01:19]} 21. Nd4 {[%clk 0:01:47]}  Qb6 {[%clk 0:01:07]} 22. Kb1 {[%clk 0:01:44]}  Rac8 {[%clk 0:01:01]} 23. g4 {[%clk 0:01:31]}  Bc5 {[%clk 0:00:51]} 24. gxf5 {[%clk 0:01:28]}  Rxf5 {[%clk 0:00:47]} 25. Qb3 {[%clk 0:00:59]}  Bxd4 {[%clk 0:00:43]} 26. Qxd5+ {[%clk 0:00:58]}  Kh8 {[%clk 0:00:38]} 27. Rxd4 {[%clk 0:00:54]}  Rxf4 {[%clk 0:00:36]} 28. Rxe4 {[%clk 0:00:52]}  Qg6 {[%clk 0:00:36]} 29. Re1 {[%clk 0:00:49]}  h6 {[%clk 0:00:33]} 30. Ka1 {[%clk 0:00:48]}  Rxe4 {[%clk 0:00:34]} 31. Qxe4 {[%clk 0:00:44]}  Qe6 {[%clk 0:00:34]} 32. Qd4 {[%clk 0:00:39]}  Re8 {[%clk 0:00:27]} 33. h4 {[%clk 0:00:38]}  a5 {[%clk 0:00:26]} 34. h5 {[%clk 0:00:36]}  b4 {[%clk 0:00:27]} 35. a4 {[%clk 0:00:33]}  Qb3 {[%clk 0:00:26]} 36. Qd7 {[%clk 0:00:31]}  Qe6 {[%clk 0:00:24]} 37. Qxe6 {[%clk 0:00:30]}  Rxe6 {[%clk 0:00:25]} 38. Ka2 {[%clk 0:00:28]}  g6 {[%clk 0:00:25]} 39. hxg6 {[%clk 0:00:27]}  Kg7 {[%clk 0:00:26]} 40. Kb3 {[%clk 0:00:27]}  Kxg6 {[%clk 0:00:26]} 41. Kc4 {[%clk 0:00:27]}  Kf5 {[%clk 0:00:23]} 42. Kd5 {[%clk 0:00:27]}  Re8 {[%clk 0:00:24]} 43. Rf1+ {[%clk 0:00:26]}  Kg6 {[%clk 0:00:24]} 44. e6 {[%clk 0:00:26]}  h5 {[%clk 0:00:23]} 45. Kd6 {[%clk 0:00:25]}  Rd8+ {[%clk 0:00:23]} 46. Kc7 {[%clk 0:00:24]}  Rd2 {[%clk 0:00:21]} 47. e7 {[%clk 0:00:24]}  Rc2+ {[%clk 0:00:20]} 48. Kd8 {[%clk 0:00:24]}  Rd2+ {[%clk 0:00:21]} 49. Ke8 {[%clk 0:00:24]}  Rxb2 {[%clk 0:00:20]} 50. Kf8 {[%clk 0:00:23]}  Re2 {[%clk 0:00:19]} 51. e8=Q+ {[%clk 0:00:23]}  Rxe8+ {[%clk 0:00:19]} 52. Kxe8 {[%clk 0:00:24]}  h4 {[%clk 0:00:19]} 53. Kd7 {[%clk 0:00:23]}  Kg5 {[%clk 0:00:18]} 54. Kc6 {[%clk 0:00:23]}  h3 {[%clk 0:00:19]} 55. Kb5 {[%clk 0:00:23]}  b3 {[%clk 0:00:20]} 56. Kxa5 {[%clk 0:00:17]}  Kg4 {[%clk 0:00:20]} 57. Kb4 {[%clk 0:00:17]}  b2 {[%clk 0:00:20]} 58. Kc3 {[%clk 0:00:16]}  Kg3 {[%clk 0:00:21]} 59. Kxb2 {[%clk 0:00:16]}  Kg2 {[%clk 0:00:22]} 60. Rc1 {[%clk 0:00:14]} 1-0


[Site "https://www.chess.com"]

[Event "Titled Tuesday Blitz March 01 Early 2022"]
[White "Sargsyan, Anna M."]
[Black "Murzin, Volodar"]
[WhiteFideId "13308130"]
[BlackFideId "44155573"]
[WhiteElo "2271"]
[BlackElo "2585"]
[Result "0-1"]
[Round "07"]
[TimeControl "180+1"]
[Date "2022.03.01"]
[WhiteClock "0:00:07"]
[BlackClock "0:00:08"]

1. d4 {[%clk 0:03:00]}  d5 {[%clk 0:02:58]} 2. c4 {[%clk 0:02:58]}  c6 {[%clk 0:02:57]} 3. cxd5 {[%clk 0:02:54]}  cxd5 {[%clk 0:02:57]} 4. Bf4 {[%clk 0:02:55]}  e6 {[%clk 0:02:56]} 5. Nc3 {[%clk 0:02:52]}  Bd6 {[%clk 0:02:56]} 6. Bxd6 {[%clk 0:02:49]}  Qxd6 {[%clk 0:02:57]} 7. e3 {[%clk 0:02:50]}  Ne7 {[%clk 0:02:55]} 8. f4 {[%clk 0:02:50]}  Nbc6 {[%clk 0:02:55]} 9. Nf3 {[%clk 0:02:51]}  f6 {[%clk 0:02:56]} 10. Bd3 {[%clk 0:02:49]}  Bd7 {[%clk 0:02:56]} 11. O-O {[%clk 0:02:50]}  O-O {[%clk 0:02:49]} 12. Rc1 {[%clk 0:02:49]}  Be8 {[%clk 0:02:48]} 13. Kh1 {[%clk 0:02:49]}  Rc8 {[%clk 0:02:44]} 14. a3 {[%clk 0:02:48]}  Bg6 {[%clk 0:02:31]} 15. Na4 {[%clk 0:02:35]}  Bxd3 {[%clk 0:02:19]} 16. Qxd3 {[%clk 0:02:36]}  b6 {[%clk 0:02:17]} 17. Rc3 {[%clk 0:02:28]}  Na5 {[%clk 0:02:13]} 18. Rfc1 {[%clk 0:02:20]}  Qd7 {[%clk 0:02:12]} 19. Qa6 {[%clk 0:01:49]}  Nc4 {[%clk 0:01:51]} 20. Re1 {[%clk 0:01:26]}  Rc6 {[%clk 0:01:44]} 21. b3 {[%clk 0:00:51]}  Nd6 {[%clk 0:01:19]} 22. Rec1 {[%clk 0:00:41]}  Rxc3 {[%clk 0:00:50]} 23. Rxc3 {[%clk 0:00:42]}  Nef5 {[%clk 0:00:50]} 24. Qd3 {[%clk 0:00:20]}  Nb5 {[%clk 0:00:46]} 25. Rc1 {[%clk 0:00:17]}  Nxa3 {[%clk 0:00:36]} 26. e4 {[%clk 0:00:18]}  dxe4 {[%clk 0:00:22]} 27. Qxe4 {[%clk 0:00:19]}  Nb5 {[%clk 0:00:23]} 28. Rd1 {[%clk 0:00:19]}  Qd5 {[%clk 0:00:19]} 29. Qd3 {[%clk 0:00:13]}  Rc8 {[%clk 0:00:18]} 30. Kg1 {[%clk 0:00:07]}  h5 {[%clk 0:00:17]} 31. h3 {[%clk 0:00:02]}  Rc6 {[%clk 0:00:14]} 32. Re1 {[%clk 0:00:02]}  Nbxd4 {[%clk 0:00:13]} 33. Nxd4 {[%clk 0:00:03]}  Qxd4+ {[%clk 0:00:13]} 34. Qxd4 {[%clk 0:00:03]}  Nxd4 {[%clk 0:00:14]} 35. Re3 {[%clk 0:00:04]}  Kf7 {[%clk 0:00:11]} 36. Kh2 {[%clk 0:00:04]}  a6 {[%clk 0:00:09]} 37. Nb2 {[%clk 0:00:04]}  b5 {[%clk 0:00:09]} 38. Nd3 {[%clk 0:00:04]}  Nf5 {[%clk 0:00:08]} 39. Rf3 {[%clk 0:00:03]}  Ke7 {[%clk 0:00:06]} 40. g4 {[%clk 0:00:03]}  Nd4 {[%clk 0:00:06]} 41. Re3 {[%clk 0:00:03]}  hxg4 {[%clk 0:00:07]} 42. hxg4 {[%clk 0:00:03]}  Rc3 {[%clk 0:00:07]} 43. b4 {[%clk 0:00:02]}  Nc2 {[%clk 0:00:07]} 44. Rg3 {[%clk 0:00:02]}  Kd6 {[%clk 0:00:07]} 45. g5 {[%clk 0:00:01]}  fxg5 {[%clk 0:00:06]} 46. fxg5 {[%clk 0:00:02]}  e5 {[%clk 0:00:07]} 47. Nf2 {[%clk 0:00:02]}  Rxg3 {[%clk 0:00:06]} 48. Kxg3 {[%clk 0:00:03]}  Nxb4 {[%clk 0:00:06]} 49. Kg4 {[%clk 0:00:04]}  Ke6 {[%clk 0:00:06]} 50. Kh5 {[%clk 0:00:04]}  Kf5 {[%clk 0:00:06]} 51. Ng4 {[%clk 0:00:04]}  Nd5 {[%clk 0:00:06]} 52. Nf2 {[%clk 0:00:04]}  Nf4+ {[%clk 0:00:06]} 53. Kh4 {[%clk 0:00:04]}  a5 {[%clk 0:00:07]} 54. Nd1 {[%clk 0:00:04]}  b4 {[%clk 0:00:07]} 55. Ne3+ {[%clk 0:00:04]}  Ke4 {[%clk 0:00:07]} 56. Nc4 {[%clk 0:00:05]}  a4 {[%clk 0:00:08]} 57. Nb6 {[%clk 0:00:05]}  a3 {[%clk 0:00:07]} 58. Na4 {[%clk 0:00:05]}  a2 {[%clk 0:00:07]} 59. Nc5+ {[%clk 0:00:06]}  Kf5 {[%clk 0:00:08]} 60. Nb3 {[%clk 0:00:07]}  e4 {[%clk 0:00:08]} 0-1


[Site "https://www.chess.com"]

[Event "Titled Tuesday Blitz March 01 Early 2022"]
[White "Savchenko, Boris"]
[Black "Vokhidov, Shamsiddin"]
[WhiteFideId "4147332"]
[BlackFideId "14204223"]
[WhiteElo "2512"]
[BlackElo "2611"]
[Result "1-0"]
[Round "07"]
[TimeControl "180+1"]
[Date "2022.03.01"]
[WhiteClock "0:00:47"]
[BlackClock "0:00:44"]

1. e4 {[%clk 0:03:00]}  c5 {[%clk 0:03:00]} 2. Nf3 {[%clk 0:02:56]}  e6 {[%clk 0:02:56]} 3. d4 {[%clk 0:02:54]}  cxd4 {[%clk 0:02:57]} 4. Nxd4 {[%clk 0:02:55]}  Nf6 {[%clk 0:02:58]} 5. Nc3 {[%clk 0:02:53]}  Nc6 {[%clk 0:02:58]} 6. Nxc6 {[%clk 0:02:54]}  bxc6 {[%clk 0:02:59]} 7. e5 {[%clk 0:02:54]}  Nd5 {[%clk 0:03:00]} 8. Ne4 {[%clk 0:02:55]}  Qc7 {[%clk 0:03:00]} 9. f4 {[%clk 0:02:54]}  Qb6 {[%clk 0:02:58]} 10. c4 {[%clk 0:02:54]}  Bb4+ {[%clk 0:02:55]} 11. Ke2 {[%clk 0:02:53]}  f5 {[%clk 0:02:55]} 12. exf6 {[%clk 0:02:49]}  Nxf6 {[%clk 0:02:55]} 13. Nd6+ {[%clk 0:02:49]}  Bxd6 {[%clk 0:02:54]} 14. Qxd6 {[%clk 0:02:50]}  Ne4 {[%clk 0:02:45]} 15. Qe5 {[%clk 0:02:35]}  d5 {[%clk 0:01:58]} 16. Qxg7 {[%clk 0:02:34]}  Rf8 {[%clk 0:01:50]} 17. Be3 {[%clk 0:02:32]}  c5 {[%clk 0:01:46]} 18. Qe5 {[%clk 0:02:08]}  Ba6 {[%clk 0:01:45]} 19. Kf3 {[%clk 0:02:02]}  O-O-O {[%clk 0:01:42]} 20. cxd5 {[%clk 0:01:59]}  exd5 {[%clk 0:01:35]} 21. b4 {[%clk 0:01:29]}  Bb7 {[%clk 0:01:01]} 22. bxc5 {[%clk 0:01:25]}  Qg6 {[%clk 0:01:00]} 23. c6 {[%clk 0:01:08]}  Qxc6 {[%clk 0:00:58]} 24. Rc1 {[%clk 0:01:01]}  Qxc1 {[%clk 0:00:55]} 25. Bxc1 {[%clk 0:00:55]}  Rde8 {[%clk 0:00:55]} 26. Qd4 {[%clk 0:00:53]}  Ng5+ {[%clk 0:00:54]} 27. Kf2 {[%clk 0:00:52]}  Ne6 {[%clk 0:00:48]} 28. Qa4 {[%clk 0:00:48]}  d4 {[%clk 0:00:44]} 29. Ba6 {[%clk 0:00:47]} 1-0


[Site "https://www.chess.com"]

[Event "Titled Tuesday Blitz March 01 Early 2022"]
[White "Seo, Jung Min"]
[Black "Aldokhin, Ivan"]
[WhiteFideId "1734687"]
[BlackFideId "24115720"]
[WhiteElo "2401"]
[BlackElo "2231"]
[Result "1-0"]
[Round "07"]
[TimeControl "180+1"]
[Date "2022.03.01"]
[WhiteClock "0:01:14"]
[BlackClock "0:00:13"]

1. d4 {[%clk 0:03:00]}  Nf6 {[%clk 0:02:58]} 2. c4 {[%clk 0:03:01]}  g6 {[%clk 0:01:46]} 3. Nf3 {[%clk 0:03:00]}  Bg7 {[%clk 0:01:46]} 4. g3 {[%clk 0:03:00]}  d6 {[%clk 0:01:46]} 5. Bg2 {[%clk 0:03:00]}  O-O {[%clk 0:01:47]} 6. O-O {[%clk 0:03:00]}  Nc6 {[%clk 0:01:47]} 7. Nc3 {[%clk 0:02:56]}  Bf5 {[%clk 0:01:47]} 8. d5 {[%clk 0:02:51]}  Na5 {[%clk 0:01:45]} 9. Nd4 {[%clk 0:02:51]}  Bd7 {[%clk 0:01:45]} 10. b3 {[%clk 0:02:50]}  c5 {[%clk 0:01:45]} 11. dxc6 {[%clk 0:02:48]}  Nxc6 {[%clk 0:01:45]} 12. Bb2 {[%clk 0:02:46]}  Re8 {[%clk 0:01:44]} 13. e3 {[%clk 0:02:44]}  h5 {[%clk 0:01:41]} 14. h3 {[%clk 0:02:43]}  Qc8 {[%clk 0:01:38]} 15. Kh2 {[%clk 0:02:43]}  h4 {[%clk 0:01:14]} 16. g4 {[%clk 0:02:43]}  Ne5 {[%clk 0:01:14]} 17. f3 {[%clk 0:02:39]}  Qc5 {[%clk 0:01:08]} 18. Qe2 {[%clk 0:02:35]}  a6 {[%clk 0:01:05]} 19. Kh1 {[%clk 0:02:34]}  Rac8 {[%clk 0:01:01]} 20. f4 {[%clk 0:02:32]}  Nc6 {[%clk 0:00:51]} 21. Rad1 {[%clk 0:02:29]}  Nxd4 {[%clk 0:00:44]} 22. exd4 {[%clk 0:02:29]}  Qc7 {[%clk 0:00:45]} 23. f5 {[%clk 0:02:17]}  b5 {[%clk 0:00:39]} 24. fxg6 {[%clk 0:02:15]}  fxg6 {[%clk 0:00:39]} 25. cxb5 {[%clk 0:02:11]}  axb5 {[%clk 0:00:38]} 26. Nxb5 {[%clk 0:02:07]}  Qc2 {[%clk 0:00:38]} 27. Rd2 {[%clk 0:02:01]}  Bxb5 {[%clk 0:00:22]} 28. Rxc2 {[%clk 0:01:55]}  Bxe2 {[%clk 0:00:13]} 29. Rxe2 {[%clk 0:01:55]}  e6 {[%clk 0:00:10]} 30. Ref2 {[%clk 0:01:44]}  Nd7 {[%clk 0:00:10]} 31. Be4 {[%clk 0:01:44]}  Nf8 {[%clk 0:00:09]} 32. Kg2 {[%clk 0:01:41]}  d5 {[%clk 0:00:09]} 33. Bd3 {[%clk 0:01:41]}  Ra8 {[%clk 0:00:09]} 34. a3 {[%clk 0:01:35]}  e5 {[%clk 0:00:09]} 35. dxe5 {[%clk 0:01:34]}  Bxe5 {[%clk 0:00:10]} 36. Rxf8+ {[%clk 0:01:28]}  Rxf8 {[%clk 0:00:09]} 37. Rxf8+ {[%clk 0:01:27]}  Kxf8 {[%clk 0:00:10]} 38. Bxe5 {[%clk 0:01:27]}  Kf7 {[%clk 0:00:10]} 39. a4 {[%clk 0:01:26]}  Ke6 {[%clk 0:00:11]} 40. Bd4 {[%clk 0:01:24]}  Rb8 {[%clk 0:00:11]} 41. Bb5 {[%clk 0:01:24]}  Rc8 {[%clk 0:00:11]} 42. a5 {[%clk 0:01:24]}  Rc2+ {[%clk 0:00:11]} 43. Kf3 {[%clk 0:01:24]}  Ra2 {[%clk 0:00:11]} 44. a6 {[%clk 0:01:22]}  Rh2 {[%clk 0:00:12]} 45. a7 {[%clk 0:01:20]}  Rxh3+ {[%clk 0:00:12]} 46. Kg2 {[%clk 0:01:16]}  Rg3+ {[%clk 0:00:12]} 47. Kf2 {[%clk 0:01:16]}  Rxb3 {[%clk 0:00:13]} 48. a8=Q {[%clk 0:01:14]}  Rxb5 {[%clk 0:00:13]} 49. Qc6+ {[%clk 0:01:14]} 1-0


[Site "https://www.chess.com"]

[Event "Titled Tuesday Blitz March 01 Early 2022"]
[White "Shafigullina, Zarina"]
[Black "Tymrakiewicz, Rafal"]
[WhiteFideId "24174220"]
[BlackFideId "1108832"]
[WhiteElo "2062"]
[BlackElo "2205"]
[Result "1-0"]
[Round "07"]
[TimeControl "180+1"]
[Date "2022.03.01"]
[WhiteClock "0:00:13"]
[BlackClock "0:00:01"]

1. d4 {[%clk 0:03:00]}  Nf6 {[%clk 0:02:56]} 2. Nf3 {[%clk 0:03:01]}  g6 {[%clk 0:02:56]} 3. g3 {[%clk 0:03:01]}  Bg7 {[%clk 0:02:57]} 4. Bg2 {[%clk 0:03:02]}  O-O {[%clk 0:02:57]} 5. O-O {[%clk 0:03:03]}  d6 {[%clk 0:02:58]} 6. c4 {[%clk 0:03:04]}  Nc6 {[%clk 0:02:58]} 7. Nc3 {[%clk 0:03:04]}  Bg4 {[%clk 0:02:58]} 8. h3 {[%clk 0:02:51]}  Bxf3 {[%clk 0:02:55]} 9. Bxf3 {[%clk 0:02:52]}  Nd7 {[%clk 0:02:55]} 10. e3 {[%clk 0:02:39]}  e5 {[%clk 0:02:52]} 11. d5 {[%clk 0:02:39]}  Ne7 {[%clk 0:02:51]} 12. Bg2 {[%clk 0:02:39]}  f5 {[%clk 0:02:41]} 13. Ne2 {[%clk 0:02:36]}  a5 {[%clk 0:02:22]} 14. e4 {[%clk 0:02:36]}  fxe4 {[%clk 0:01:56]} 15. Bxe4 {[%clk 0:02:35]}  Nf6 {[%clk 0:01:52]} 16. Bg2 {[%clk 0:02:27]}  Qd7 {[%clk 0:01:52]} 17. f4 {[%clk 0:02:27]}  Nh5 {[%clk 0:01:47]} 18. Rb1 {[%clk 0:02:17]}  Rf7 {[%clk 0:01:36]} 19. g4 {[%clk 0:02:13]}  Nxf4 {[%clk 0:01:33]} 20. Bxf4 {[%clk 0:02:10]}  exf4 {[%clk 0:01:34]} 21. Nxf4 {[%clk 0:02:11]}  b6 {[%clk 0:00:54]} 22. Ne6 {[%clk 0:02:11]}  Rxf1+ {[%clk 0:00:52]} 23. Qxf1 {[%clk 0:02:11]}  Be5 {[%clk 0:00:48]} 24. Qf3 {[%clk 0:02:07]}  Nc6 {[%clk 0:00:44]} 25. Rf1 {[%clk 0:02:04]}  Qe7 {[%clk 0:00:26]} 26. dxc6 {[%clk 0:01:39]}  Qxe6 {[%clk 0:00:25]} 27. Qd5 {[%clk 0:01:39]}  Qxd5 {[%clk 0:00:23]} 28. Bxd5+ {[%clk 0:01:40]}  Kh8 {[%clk 0:00:20]} 29. Rf7 {[%clk 0:01:34]}  Rc8 {[%clk 0:00:18]} 30. Be6 {[%clk 0:01:30]}  Re8 {[%clk 0:00:17]} 31. Bd5 {[%clk 0:01:22]}  Rc8 {[%clk 0:00:17]} 32. b3 {[%clk 0:01:18]}  Bd4+ {[%clk 0:00:12]} 33. Kg2 {[%clk 0:01:18]}  b5 {[%clk 0:00:12]} 34. cxb5 {[%clk 0:01:15]}  Bb6 {[%clk 0:00:12]} 35. h4 {[%clk 0:01:00]}  Re8 {[%clk 0:00:12]} 36. h5 {[%clk 0:00:59]}  Re5 {[%clk 0:00:12]} 37. h6 {[%clk 0:00:52]}  Re8 {[%clk 0:00:12]} 38. Kg3 {[%clk 0:00:47]}  Rd8 {[%clk 0:00:10]} 39. Be6 {[%clk 0:00:45]}  Re8 {[%clk 0:00:09]} 40. Bd7 {[%clk 0:00:44]}  Re3+ {[%clk 0:00:05]} 41. Kh4 {[%clk 0:00:42]}  Kg8 {[%clk 0:00:05]} 42. Rg7+ {[%clk 0:00:37]}  Kh8 {[%clk 0:00:06]} 43. Kg5 {[%clk 0:00:34]}  Bd4 {[%clk 0:00:06]} 44. Rf7 {[%clk 0:00:33]}  Kg8 {[%clk 0:00:06]} 45. Rf1 {[%clk 0:00:28]}  Re5+ {[%clk 0:00:06]} 46. Kf4 {[%clk 0:00:22]}  Be3+ {[%clk 0:00:06]} 47. Kf3 {[%clk 0:00:20]}  Bxh6 {[%clk 0:00:07]} 48. b6 {[%clk 0:00:14]}  Rb5 {[%clk 0:00:01]} 49. bxc7 {[%clk 0:00:13]} 1-0


[Site "https://www.chess.com"]

[Event "Titled Tuesday Blitz March 01 Early 2022"]
[White "Shtyka, Sergey"]
[Black "Petrova, Irina"]
[WhiteFideId "4138465"]
[BlackFideId "14124122"]
[WhiteElo "2014"]
[BlackElo "1988"]
[Result "1-0"]
[Round "07"]
[TimeControl "180+1"]
[Date "2022.03.01"]
[WhiteClock "0:00:08"]
[BlackClock "0:00:32"]

1. e4 {[%clk 0:03:00]}  d6 {[%clk 0:03:00]} 2. d4 {[%clk 0:03:00]}  Nf6 {[%clk 0:03:00]} 3. Nc3 {[%clk 0:03:00]}  e5 {[%clk 0:03:00]} 4. dxe5 {[%clk 0:03:00]}  dxe5 {[%clk 0:03:01]} 5. Qxd8+ {[%clk 0:03:00]}  Kxd8 {[%clk 0:03:02]} 6. Bc4 {[%clk 0:03:00]}  Ke8 {[%clk 0:02:56]} 7. Nb5 {[%clk 0:02:36]}  Na6 {[%clk 0:02:51]} 8. f4 {[%clk 0:02:35]}  Nxe4 {[%clk 0:02:43]} 9. fxe5 {[%clk 0:02:30]}  c6 {[%clk 0:02:39]} 10. Nd4 {[%clk 0:02:24]}  Bb4+ {[%clk 0:02:34]} 11. Ke2 {[%clk 0:02:01]}  Bg4+ {[%clk 0:02:29]} 12. Ngf3 {[%clk 0:02:00]}  Rd8 {[%clk 0:02:26]} 13. Bxa6 {[%clk 0:01:48]}  Rxd4 {[%clk 0:02:18]} 14. Bxb7 {[%clk 0:01:41]}  Bc5 {[%clk 0:01:18]} 15. Be3 {[%clk 0:01:22]}  Rc4 {[%clk 0:01:15]} 16. Bxc6+ {[%clk 0:01:18]}  Ke7 {[%clk 0:01:14]} 17. Bd5 {[%clk 0:00:38]}  Rxc2+ {[%clk 0:00:58]} 18. Kd3 {[%clk 0:00:38]}  Rxg2 {[%clk 0:00:57]} 19. Bxe4 {[%clk 0:00:22]}  Bxe3 {[%clk 0:00:48]} 20. Kxe3 {[%clk 0:00:21]}  Rxb2 {[%clk 0:00:48]} 21. Rhb1 {[%clk 0:00:15]}  Rhb8 {[%clk 0:00:47]} 22. Rxb2 {[%clk 0:00:15]}  Rxb2 {[%clk 0:00:48]} 23. Rb1 {[%clk 0:00:16]}  Rxa2 {[%clk 0:00:45]} 24. Rb7+ {[%clk 0:00:16]}  Ke6 {[%clk 0:00:36]} 25. Ng5+ {[%clk 0:00:12]}  Kxe5 {[%clk 0:00:35]} 26. Nxf7+ {[%clk 0:00:11]}  Kf6 {[%clk 0:00:35]} 27. Nd6 {[%clk 0:00:10]}  Ra3+ {[%clk 0:00:35]} 28. Kf4 {[%clk 0:00:09]}  Be6 {[%clk 0:00:32]} 29. Ne8# {[%clk 0:00:08]} 1-0


[Site "https://www.chess.com"]